bitfinex/quotes_BTCUSD_20241101
["timestamp","ask_amount","ask_price","bid_price","bid_amount"]
[1730502383802,0.04661099,69556.0,69555.0,0.29522625]
[1730502384046,0.01210749,69556.0,69555.0,0.29522625]
[1730502384278,0.03583121,69556.0,69555.0,0.29522625]
[1730502384515,0.03583121,69556.0,69555.0,0.29322625]
[1730502384756,0.04749566,69556.0,69555.0,0.29322625]
[1730502384997,0.09052904,69556.0,69555.0,0.001]
[1730502385204,0.22529566,69556.0,69555.0,0.001]
[1730502385435,0.38435088,69556.0,69555.0,0.001]
[1730502385651,0.47052679,69556.0,69555.0,0.001]
[1730502386122,0.62506839,69556.0,69555.0,0.001]
[1730502386357,0.53889248,69556.0,69555.0,0.001]
[1730502386830,0.50387627,69556.0,69555.0,0.001]
[1730502387073,0.54289426,69556.0,69555.0,0.002]
[1730502387321,0.143772,69555.0,69550.0,0.14378]
[1730502387559,0.08616821,69552.0,69550.0,0.14378]
[1730502387810,0.25870739,69551.0,69550.0,0.14378]
[1730502388093,0.44639027,69551.0,69547.0,0.148785]
[1730502388336,0.0430874,69548.0,69547.0,0.148785]
[1730502388546,0.08884876,69548.0,69547.0,0.148785]
[1730502388769,0.10045903,69548.0,69547.0,0.148785]
[1730502389226,0.10045903,69548.0,69547.0,0.143785]
[1730502389453,0.05737163,69548.0,69547.0,0.148785]
[1730502389892,0.05737163,69548.0,69547.0,0.29224025]
[1730502390352,0.05737163,69548.0,69547.0,0.29524025]
[1730502391047,0.04573448,69548.0,69547.0,0.58181625]
[1730502391233,0.04297343,69548.0,69547.0,0.58381625]
[1730502391911,0.02145132,69548.0,69547.0,0.58381625]
[1730502392557,0.02145132,69548.0,69547.0,0.71765518]
[1730502393013,0.02145132,69548.0,69547.0,0.89395518]
[1730502393231,0.04305609,69558.0,69557.0,0.012]
[1730502393457,0.13010092,69559.0,69558.0,0.148764]
[1730502393670,0.13010092,69559.0,69558.0,0.28721925]
[1730502393855,0.13010092,69559.0,69558.0,0.29221925]
[1730502394088,0.14085942,69559.0,69558.0,0.29221925]
[1730502394293,0.0115735,69559.0,69558.0,0.29221925]
[1730502394499,0.000815,69559.0,69558.0,0.29221925]
[1730502394727,0.0115735,69559.0,69558.0,0.29221925]
[1730502394933,0.0155735,69559.0,69558.0,0.29321925]
[1730502395142,0.004815,69559.0,69558.0,0.29321925]
[1730502395355,0.008815,69559.0,69558.0,0.29421925]
[1730502397614,0.008815,69559.0,69558.0,0.28421925]
[1730502398083,0.004815,69559.0,69558.0,0.29321925]
[1730502398243,0.000815,69559.0,69558.0,0.29221925]
[1730502398466,0.000815,69559.0,69558.0,0.29321925]
[1730502398846,0.000815,69559.0,69558.0,0.29421925]
[1730502399921,0.000815,69559.0,69558.0,0.29321925]
[1730502400066,0.000815,69559.0,69558.0,0.29221925]
[1730502400471,0.000815,69559.0,69558.0,0.29421925]
[1730502400872,0.01157265,69559.0,69558.0,0.29321925]
[1730502401286,0.01157265,69559.0,69558.0,0.29421925]
[1730502401726,0.000815,69559.0,69558.0,0.29421925]
[1730502402146,0.000815,69559.0,69558.0,0.29621925]
[1730502403438,0.000815,69559.0,69558.0,0.29421925]
[1730502403439,0.04386924,69559.0,69558.0,0.29421925]
[1730502403875,0.06623991,69559.0,69558.0,0.29421925]
[1730502406032,0.07969709,69559.0,69558.0,0.29421925]
[1730502407151,0.07970862,69559.0,69558.0,0.29421925]
[1730502410250,0.07970862,69559.0,69558.0,0.28921925]
[1730502410509,0.07970862,69559.0,69558.0,0.29421925]
[1730502410726,0.05547878,69559.0,69558.0,0.29421925]
[1730502410939,0.07973138,69559.0,69558.0,0.29421925]
[1730502411232,0.22349338,69559.0,69558.0,0.002]
[1730502411441,0.33938113,69559.0,69558.0,0.002]
[1730502412102,0.3842729,69559.0,69558.0,0.002]
[1730502412957,0.40583128,69559.0,69558.0,0.002]
[1730502413170,0.40583389,69559.0,69558.0,0.002]
[1730502414257,0.39505679,69559.0,69558.0,0.002]
[1730502414481,0.40583565,69559.0,69558.0,0.002]
[1730502414716,0.37080328,69559.0,69558.0,0.002]
[1730502414925,0.40583391,69559.0,69558.0,0.002]
[1730502415130,0.40583391,69559.0,69558.0,9.002]
[1730502415345,0.40583352,69559.0,69558.0,9.002]
[1730502415555,0.39422398,69559.0,69558.0,9.002]
[1730502418102,0.38344567,69559.0,69558.0,9.002]
[1730502418285,0.39422401,69559.0,69558.0,9.002]
[1730502419026,0.39425415,69559.0,69558.0,9.002]
[1730502419237,0.40586376,69559.0,69558.0,9.002]
[1730502420080,0.4058756,69559.0,69558.0,9.002]
[1730502420267,0.4058756,69559.0,69558.0,9.00364]
[1730502420398,0.39426599,69559.0,69558.0,9.00364]
[1730502420824,0.3592352,69559.0,69558.0,9.00364]
[1730502421055,0.37270902,69559.0,69558.0,9.00364]
[1730502421269,0.39426714,69559.0,69558.0,9.00364]
[1730502421706,0.5234765,69559.0,69558.0,9.00364]
[1730502422111,0.53508611,69559.0,69558.0,9.00364]
[1730502422336,0.40587675,69559.0,69558.0,9.00364]
[1730502423293,0.40595007,69559.0,69558.0,9.00364]
[1730502423756,0.39517173,69559.0,69558.0,9.00364]
[1730502423995,0.40594932,69559.0,69558.0,9.00364]
[1730502424231,0.37091737,69559.0,69558.0,9.00364]
[1730502424451,0.38169495,69559.0,69558.0,9.00364]
[1730502424674,0.39516693,69559.0,69558.0,9.00364]
[1730502424918,0.4167221,69559.0,69558.0,9.00364]
[1730502426341,0.38169495,69559.0,69558.0,9.00364]
[1730502426578,0.41671855,69559.0,69558.0,9.00364]
[1730502427268,0.40510894,69559.0,69558.0,9.00364]
[1730502427482,0.38086087,69559.0,69558.0,9.00364]
[1730502427699,0.40510811,69559.0,69558.0,9.00364]
[1730502427933,0.40517928,69559.0,69558.0,9.00364]
[1730502430460,0.37015548,69559.0,69558.0,9.00364]
[1730502430666,0.40518115,69559.0,69558.0,9.00364]
[1730502431102,0.3944046,69559.0,69558.0,9.00364]
[1730502431584,0.38362702,69559.0,69558.0,9.00364]
[1730502432650,0.38363736,69559.0,69558.0,9.00364]
[1730502434397,0.34861169,69559.0,69558.0,9.00364]
[1730502434621,0.38364588,69559.0,69558.0,9.00364]
[1730502434838,0.37017119,69559.0,69558.0,9.00364]
[1730502435059,0.38364588,69559.0,69558.0,9.00364]
[1730502437202,0.38364596,69559.0,69558.0,9.00364]
[1730502437625,0.48364596,69559.0,69558.0,9.00364]
[1730502438143,0.46021057,69559.0,69558.0,9.00364]
[1730502438361,0.48177823,69559.0,69558.0,9.00364]
[1730502438570,0.64804264,69559.0,69558.0,8.97124778]
[1730502438784,0.65964145,69559.0,69558.0,8.97124778]
[1730502439003,0.60490414,69559.0,69558.0,8.97124778]
[1730502441417,0.47557333,69559.0,69558.0,8.97124778]
[1730502441698,0.4621028,69559.0,69558.0,8.97124778]
[1730502441909,0.47371179,69559.0,69558.0,8.97124778]
[1730502442568,0.4621028,69559.0,69558.0,8.97124778]
[1730502443206,0.4621028,69559.0,69558.0,9.04684778]
[1730502443622,0.3621028,69559.0,69558.0,9.04684778]
[1730502445127,0.34861177,69559.0,69558.0,9.04684778]
[1730502445333,0.36209921,69559.0,69558.0,9.04684778]
[1730502445577,0.49141714,69559.0,69558.0,9.04684778]
[1730502446030,0.36209921,69559.0,69558.0,9.04684778]
[1730502446238,0.36207457,69559.0,69558.0,9.04684778]
[1730502446451,0.49138981,69559.0,69558.0,9.04684778]
[1730502447771,0.49138907,69559.0,69558.0,9.04684778]
[1730502448677,0.36207383,69559.0,69558.0,9.04684778]
[1730502449809,0.36207383,69559.0,69558.0,8.97124778]
[1730502450888,0.36211724,69559.0,69558.0,8.97124778]
[1730502452533,0.36211795,69559.0,69558.0,8.97124778]
[1730502453935,0.21835595,69559.0,69558.0,9.29391178]
[1730502454147,0.21835595,69559.0,69558.0,9.29591178]
[1730502454383,0.21835595,69559.0,69558.0,9.29391178]
[1730502454598,0.05919418,69559.0,69558.0,9.29391178]
[1730502455041,0.21835595,69559.0,69558.0,9.29391178]
[1730502455691,0.17346418,69559.0,69558.0,9.29391178]
[1730502455902,0.15997677,69559.0,69558.0,9.29391178]
[1730502456128,0.17345866,69559.0,69558.0,9.29391178]
[1730502463684,0.17345866,69559.0,69558.0,9.29591178]
[1730502464413,0.17348433,69559.0,69558.0,9.29591178]
[1730502465258,0.01429689,69559.0,69558.0,9.29591178]
[1730502465478,0.17348173,69559.0,69558.0,9.29591178]
[1730502465913,0.17348173,69559.0,69558.0,9.30091178]
[1730502467237,0.15999984,69559.0,69558.0,9.30091178]
[1730502467473,0.17346927,69559.0,69558.0,9.30091178]
[1730502468331,0.17346927,69559.0,69558.0,9.29891178]
[1730502468953,0.17346927,69559.0,69558.0,9.30091178]
[1730502469955,0.17446927,69559.0,69558.0,9.30191178]
[1730502470407,0.17346927,69559.0,69558.0,9.30091178]
[1730502470626,0.17346898,69559.0,69558.0,9.30091178]
[1730502470842,0.17346898,69559.0,69558.0,9.29891178]
[1730502471716,0.17345124,69559.0,69558.0,9.29891178]
[1730502471922,0.17445124,69559.0,69558.0,9.29991178]
[1730502472362,0.17445124,69559.0,69558.0,9.30191178]
[1730502473613,0.17345124,69559.0,69558.0,9.30091178]
[1730502474027,0.17445124,69559.0,69558.0,9.30091178]
[1730502475068,0.28223646,69559.0,69558.0,9.30091178]
[1730502475520,0.17545124,69559.0,69558.0,9.30191178]
[1730502476627,0.26166605,69559.0,69558.0,9.30191178]
[1730502476842,0.17540668,69559.0,69558.0,9.30191178]
[1730502477062,0.08093533,69559.0,69558.0,9.30191178]
[1730502477512,0.08093954,69559.0,69558.0,9.30191178]
[1730502477739,0.08093954,69559.0,69558.0,9.29991178]
[1730502477979,0.06746619,69559.0,69558.0,9.29991178]
[1730502478191,0.08093954,69559.0,69558.0,9.29991178]
[1730502478616,0.01628835,69559.0,69558.0,9.29991178]
[1730502479715,0.01628835,69559.0,69558.0,9.30191178]
[1730502480602,0.01628835,69559.0,69558.0,9.29991178]
[1730502481477,0.10248035,69559.0,69558.0,9.29991178]
[1730502481899,0.08093442,69559.0,69558.0,9.29991178]
[1730502482326,0.05936893,69559.0,69558.0,9.29991178]
[1730502482763,0.05936893,69559.0,69558.0,9.30191178]
[1730502483645,0.05937863,69559.0,69558.0,9.30191178]
[1730502485172,0.01629805,69559.0,69558.0,9.30191178]
[1730502486176,0.01629805,69559.0,69558.0,9.29991178]
[1730502487433,0.002815,69559.0,69558.0,9.28991178]
[1730502487658,0.08092314,69559.0,69558.0,9.19361178]
[1730502487877,0.08092314,69559.0,69558.0,9.19861178]
[1730502487878,0.17529958,69559.0,69558.0,9.19861178]
[1730502488117,0.16005863,69559.0,69558.0,8.97224778]
[1730502488538,0.31906158,69559.0,69558.0,8.97224778]
[1730502488756,0.38555659,69559.0,69558.0,8.97224778]
[1730502489192,0.22655364,69559.0,69558.0,8.97224778]
[1730502489417,0.38458968,69559.0,69558.0,8.97124778]
[1730502489640,0.38558968,69559.0,69558.0,8.97224778]
[1730502489871,0.38458968,69559.0,69558.0,8.97224778]
[1730502490290,0.36401818,69559.0,69558.0,8.97324778]
[1730502490528,0.36301818,69559.0,69558.0,8.97224778]
[1730502490758,0.3630144,69559.0,69558.0,8.97224778]
[1730502490975,0.37379666,69559.0,69558.0,8.97224778]
[1730502491189,0.38379666,69559.0,69558.0,8.97224778]
[1730502491618,0.37279666,69559.0,69558.0,8.97124778]
[1730502492075,0.38679666,69559.0,69558.0,8.97224778]
[1730502492513,0.39879666,69559.0,69558.0,8.97324778]
[1730502492717,0.39879666,69559.0,69558.0,8.97224778]
[1730502493149,0.41079666,69559.0,69558.0,8.97324778]
[1730502493976,0.41082428,69559.0,69558.0,8.97324778]
[1730502494448,0.4323671,69559.0,69558.0,8.97324778]
[1730502495332,0.6081671,69559.0,69558.0,8.97324778]
[1730502498264,0.59738484,69559.0,69558.0,8.97324778]
[1730502498472,0.5323568,69559.0,69558.0,8.97324778]
[1730502498699,0.53234083,69559.0,69558.0,8.97324778]
[1730502498999,0.37327717,69559.0,69558.0,8.97324778]
[1730502499802,0.53232367,69559.0,69558.0,8.97324778]
[1730502500409,0.54387417,69559.0,69558.0,8.97324778]
[1730502501464,0.52233221,69559.0,69558.0,8.97324778]
[1730502501902,0.52109751,69559.0,69558.0,8.97324778]
[1730502502110,0.54532742,69559.0,69558.0,8.97324778]
[1730502502348,0.54530924,69559.0,69558.0,8.97324778]
[1730502505755,0.54530292,69559.0,69558.0,8.97324778]
[1730502505993,0.53184543,69559.0,69558.0,8.97324778]
[1730502506207,0.54530305,69559.0,69558.0,8.97324778]
[1730502508890,0.82915562,69559.0,69558.0,8.97324778]
[1730502509102,0.6837583,69559.0,69558.0,8.97324778]
[1730502509523,0.82908488,69559.0,69558.0,8.97324778]
[1730502509967,0.82908459,69559.0,69558.0,8.97324778]
[1730502510176,0.84254432,69559.0,69558.0,8.97324778]
[1730502510385,0.82908456,69559.0,69558.0,8.97324778]
[1730502511455,0.68376041,69559.0,69558.0,8.97324778]
[1730502511661,0.82908456,69559.0,69558.0,8.97324778]
[1730502511845,0.68376041,69559.0,69558.0,8.97324778]
[1730502512062,0.82908456,69559.0,69558.0,8.97324778]
[1730502512925,0.68376041,69559.0,69558.0,8.97324778]
[1730502513347,0.67299808,69559.0,69558.0,8.97324778]
[1730502513601,0.68376888,69559.0,69558.0,8.97324778]
[1730502517509,0.68377613,69559.0,69558.0,8.97324778]
[1730502517919,0.67300533,69559.0,69558.0,8.97324778]
[1730502521134,0.53455008,69559.0,69558.0,8.97324778]
[1730502521338,0.53455008,69559.0,69558.0,9.06714778]
[1730502521555,0.52299958,69559.0,69558.0,9.06714778]
[1730502521770,0.52300614,69559.0,69558.0,9.06714778]
[1730502521980,0.50952883,69559.0,69558.0,9.06714778]
[1730502522194,0.52300535,69559.0,69558.0,9.06714778]
[1730502524644,0.25624335,69559.0,69558.0,9.34039728]
[1730502524871,0.21131984,69559.0,69558.0,9.29211178]
[1730502525068,0.09533786,69559.0,69558.0,9.29711178]
[1730502525323,0.05229277,69559.0,69558.0,9.30211178]
[1730502525549,0.04029277,69559.0,69558.0,9.30111178]
[1730502525759,0.02829277,69559.0,69558.0,9.30311178]
[1730502525977,0.02029277,69559.0,69558.0,9.30311178]
[1730502526197,0.01429277,69559.0,69558.0,9.30011178]
[1730502526423,0.02429277,69559.0,69558.0,9.30111178]
[1730502526847,0.01429277,69559.0,69558.0,9.30011178]
[1730502527056,0.04106382,69559.0,69558.0,9.30111178]
[1730502527527,0.03029277,69559.0,69558.0,9.30111178]
[1730502527742,0.08609898,69564.0,69563.0,0.148754]
[1730502527887,0.08609898,69564.0,69563.0,0.45970925]
[1730502528530,0.08609898,69564.0,69563.0,0.46170925]
[1730502530738,0.000815,69565.0,69564.0,0.250152]
[1730502530962,0.000815,69565.0,69564.0,0.38360725]
[1730502531301,0.000815,69565.0,69564.0,0.38860725]
[1730502532892,0.000815,69565.0,69564.0,0.46470725]
[1730502533487,0.000815,69565.0,69564.0,0.46570725]
[1730502533693,0.000815,69565.0,69564.0,0.46470725]
[1730502535080,0.000815,69565.0,69564.0,0.60318455]
[1730502535552,0.000815,69565.0,69564.0,0.46470725]
[1730502536613,0.000815,69565.0,69564.0,0.46670725]
[1730502545076,0.000815,69565.0,69564.0,0.471284]
[1730502552363,0.01425452,69565.0,69564.0,0.471284]
[1730502555075,0.000815,69565.0,69564.0,0.471284]
[1730502555279,0.01427672,69565.0,69564.0,0.60501303]
[1730502555502,0.000815,69565.0,69564.0,0.61001303]
[1730502555709,0.0142814,69565.0,69564.0,0.61001303]
[1730502556527,0.000815,69565.0,69564.0,0.61001303]
[1730502556736,0.01428535,69565.0,69564.0,0.61001303]
[1730502558413,0.01428535,69565.0,69564.0,0.61101303]
[1730502558795,0.01428567,69565.0,69564.0,0.61101303]
[1730502559003,0.01428567,69565.0,69564.0,0.60601303]
[1730502559213,0.000815,69565.0,69564.0,0.61101303]
[1730502559611,0.000815,69565.0,69564.0,0.60601303]
[1730502560019,0.000815,69565.0,69564.0,0.61101303]
[1730502560840,0.000815,69565.0,69564.0,0.60601303]
[1730502561060,0.000815,69565.0,69564.0,0.61101303]
[1730502561272,0.01428102,69565.0,69564.0,0.69737303]
[1730502561476,0.01428102,69565.0,69564.0,0.61101303]
[1730502562321,0.01428102,69565.0,69564.0,0.60601303]
[1730502562525,0.01428102,69565.0,69564.0,0.61101303]
[1730502562526,0.000815,69565.0,69564.0,0.61101303]
[1730502562732,0.000815,69565.0,69564.0,0.60601303]
[1730502562937,0.000815,69565.0,69564.0,0.61101303]
[1730502563600,0.01428089,69565.0,69564.0,0.61101303]
[1730502563803,0.000815,69565.0,69564.0,0.61101303]
[1730502564868,0.000815,69565.0,69564.0,0.60601303]
[1730502565102,0.01428128,69565.0,69564.0,0.61101303]
[1730502565834,0.01428128,69565.0,69564.0,0.60601303]
[1730502566038,0.01428128,69565.0,69564.0,0.61101303]
[1730502566666,0.01428392,69565.0,69564.0,0.61101303]
[1730502567350,0.01428392,69565.0,69564.0,0.60601303]
[1730502567561,0.01428392,69565.0,69564.0,0.477284]
[1730502570112,0.01428524,69565.0,69564.0,0.568644]
[1730502571430,0.01428524,69565.0,69564.0,0.563644]
[1730502571638,0.01428524,69565.0,69564.0,0.568644]
[1730502571874,0.01428524,69565.0,69564.0,0.7071213]
[1730502572082,0.01428524,69565.0,69564.0,0.7021213]
[1730502572316,0.01428524,69565.0,69564.0,0.7071213]
[1730502573682,0.000814,69571.0,69570.0,0.15574]
[1730502573893,0.000814,69571.0,69570.0,0.39249525]
[1730502574099,0.000814,69571.0,69570.0,0.49509403]
[1730502575205,0.000814,69571.0,69570.0,0.49609403]
[1730502576750,0.0331436,69571.0,69570.0,0.49609403]
[1730502576980,0.02236707,69571.0,69570.0,0.49609403]
[1730502577186,0.02236761,69571.0,69570.0,0.49609403]
[1730502577410,0.000814,69571.0,69570.0,0.49609403]
[1730502578052,0.02236864,69571.0,69570.0,0.49609403]
[1730502578317,0.03314642,69571.0,69570.0,0.49609403]
[1730502578530,0.02236864,69571.0,69570.0,0.49609403]
[1730502578966,0.02236943,69571.0,69570.0,0.49609403]
[1730502579180,0.03314717,69571.0,69570.0,0.39349525]
[1730502581908,0.03315252,69571.0,69570.0,0.39349525]
[1730502585664,0.04663448,69571.0,69570.0,0.39349525]
[1730502588094,0.0250737,69571.0,69570.0,0.39349525]
[1730502589141,0.01159174,69571.0,69570.0,0.39349525]
[1730502589349,0.01429709,69571.0,69570.0,0.39349525]
[1730502589604,0.02508356,69571.0,69570.0,0.39349525]
[1730502590676,0.02008356,69571.0,69570.0,0.53197255]
[1730502592287,0.02090456,69571.0,69570.0,0.53197255]
[1730502592502,0.01160759,69571.0,69570.0,0.53197255]
[1730502593572,0.01160791,69571.0,69570.0,0.53197255]
[1730502595284,0.01160791,69571.0,69570.0,0.39349525]
[1730502596345,0.01160834,69571.0,69570.0,0.39349525]
[1730502597273,0.03318312,69571.0,69570.0,0.39349525]
[1730502598131,0.01160834,69571.0,69570.0,0.39349525]
[1730502600298,0.01160835,69571.0,69570.0,0.39349525]
[1730502602242,0.01160832,69571.0,69570.0,0.40863939]
[1730502602670,0.02509248,69571.0,69570.0,0.40863939]
[1730502602886,0.02509248,69571.0,69570.0,0.39349525]
[1730502604229,0.01430516,69571.0,69570.0,0.48089525]
[1730502604453,0.01430516,69571.0,69570.0,0.48253725]
[1730502604675,0.01430516,69571.0,69570.0,0.53223036]
[1730502604914,0.0862915,69581.0,69570.0,0.53223036]
[1730502604915,0.0431373,69583.0,69579.0,0.005]
[1730502605193,0.0431373,69583.0,69571.0,0.002]
[1730502605194,0.06470595,69588.0,69587.0,0.247065]
[1730502605428,0.21707513,69592.0,69591.0,0.153696]
[1730502605654,0.000814,69596.0,69595.0,0.153688]
[1730502605877,0.02504459,69596.0,69595.0,0.29414325]
[1730502606085,0.04658343,69596.0,69595.0,0.29414325]
[1730502606299,0.02504459,69596.0,69595.0,0.29414325]
[1730502606533,0.01427544,69596.0,69595.0,0.29414325]
[1730502606751,0.01427544,69596.0,69595.0,0.41027368]
[1730502606967,0.01427544,69596.0,69595.0,0.41127368]
[1730502607391,0.01427544,69596.0,69595.0,0.38362671]
[1730502608263,0.000814,69596.0,69595.0,0.38362671]
[1730502608489,0.000814,69596.0,69595.0,0.38262671]
[1730502608717,0.000814,69596.0,69595.0,0.38362671]
[1730502609189,0.000814,69596.0,69595.0,0.38715272]
[1730502609626,0.000814,69596.0,69595.0,0.38815272]
[1730502609843,0.01425034,69596.0,69595.0,0.29614325]
[1730502610730,0.01425034,69596.0,69595.0,0.61091838]
[1730502610940,0.000814,69596.0,69595.0,0.39384325]
[1730502612051,0.000814,69596.0,69595.0,0.39284325]
[1730502612716,0.000814,69596.0,69595.0,0.39184325]
[1730502612985,0.000814,69596.0,69595.0,0.39284325]
[1730502613206,0.000814,69596.0,69595.0,0.39384325]
[1730502617118,0.01423189,69596.0,69595.0,0.79915662]
[1730502617334,0.000814,69596.0,69595.0,0.68344149]
[1730502618202,0.000814,69596.0,69595.0,0.68244149]
[1730502618404,0.000814,69596.0,69595.0,0.68344149]
[1730502618822,0.000814,69596.0,69595.0,0.68144149]
[1730502619039,0.000814,69596.0,69595.0,0.68244149]
[1730502619255,0.000814,69596.0,69595.0,0.56740325]
[1730502619472,0.000814,69596.0,69595.0,0.39784325]
[1730502619704,0.000814,69596.0,69595.0,0.39084325]
[1730502619916,0.076614,69596.0,69595.0,0.29314325]
[1730502620338,0.09002444,69596.0,69595.0,0.29314325]
[1730502621218,0.09002444,69596.0,69595.0,0.29214325]
[1730502621450,0.09302444,69596.0,69595.0,0.29214325]
[1730502621685,0.09302444,69596.0,69595.0,0.29314325]
[1730502621686,0.13189596,69596.0,69595.0,0.29314325]
[1730502622127,0.14784446,69596.0,69595.0,0.29314325]
[1730502622565,0.14784446,69596.0,69595.0,0.144688]
[1730502622795,0.14784446,69596.0,69595.0,0.149688]
[1730502623297,0.07204446,69596.0,69595.0,0.149688]
[1730502623511,0.05909596,69596.0,69595.0,0.29514325]
[1730502623725,0.03763606,69596.0,69595.0,0.29514325]
[1730502623932,0.03763606,69596.0,69595.0,0.29314325]
[1730502624140,0.05610164,69596.0,69595.0,0.29314325]
[1730502624352,0.04910862,69596.0,69595.0,0.29214325]
[1730502624582,0.06110862,69596.0,69595.0,0.29314325]
[1730502624795,0.13290862,69596.0,69595.0,0.29314325]
[1730502625220,0.14086347,69596.0,69595.0,0.29214325]
[1730502625442,0.14786347,69596.0,69595.0,0.29314325]
[1730502626973,0.13447177,69596.0,69595.0,0.29314325]
[1730502627182,0.14789597,69596.0,69595.0,0.29314325]
[1730502628473,0.07209597,69596.0,69595.0,0.29414325]
[1730502628688,0.07209597,69596.0,69595.0,0.29314325]
[1730502628864,0.05914112,69596.0,69595.0,0.29314325]
[1730502629074,0.07210194,69596.0,69595.0,0.29314325]
[1730502629624,0.07210194,69596.0,69595.0,0.26814325]
[1730502630480,0.0721458,69596.0,69595.0,0.26814325]
[1730502630838,0.05918498,69596.0,69595.0,0.26814325]
[1730502632923,0.05921289,69596.0,69595.0,0.26814325]
[1730502635874,0.05921289,69596.0,69595.0,0.001]
[1730502636080,0.05921289,69596.0,69595.0,0.144688]
[1730502636361,0.07938977,69596.0,69595.0,0.29514325]
[1730502636781,0.05921289,69596.0,69595.0,0.29514325]
[1730502640966,0.0458099,69596.0,69595.0,0.29514325]
[1730502641173,0.05926986,69596.0,69595.0,0.29514325]
[1730502641427,0.05926986,69596.0,69595.0,0.38884325]
[1730502641960,0.02427396,69596.0,69595.0,0.38884325]
[1730502642112,0.05926936,69596.0,69595.0,0.38884325]
[1730502642704,0.02427396,69596.0,69595.0,0.38884325]
[1730502643833,0.010814,69596.0,69595.0,0.38884325]
[1730502644615,0.05926676,69596.0,69595.0,0.38884325]
[1730502646892,0.05926977,69596.0,69595.0,0.38884325]
[1730502647559,0.05926977,69596.0,69595.0,0.29314325]
[1730502648041,0.08002237,69596.0,69595.0,0.29314325]
[1730502649404,0.12301777,69596.0,69595.0,0.29314325]
[1730502649601,0.08002237,69596.0,69595.0,0.29514325]
[1730502650267,0.08002237,69596.0,69595.0,0.29678525]
[1730502650484,0.14451547,69596.0,69595.0,0.29678525]
[1730502652134,0.14451547,69596.0,69595.0,0.29478525]
[1730502652359,0.14465181,69596.0,69595.0,0.39008525]
[1730502652577,0.08002237,69596.0,69595.0,0.39008525]
[1730502653421,0.08006482,69596.0,69595.0,0.39008525]
[1730502656801,0.0315666,69596.0,69595.0,0.39008525]
[1730502657017,0.08008088,69596.0,69595.0,0.39008525]
[1730502660652,0.08008032,69596.0,69595.0,0.39008525]
[1730502660883,0.06660429,69596.0,69595.0,0.39008525]
[1730502662983,0.0315666,69596.0,69595.0,0.39008525]
[1730502663209,0.06660152,69596.0,69595.0,0.41887525]
[1730502663468,0.06660152,69596.0,69595.0,0.15133]
[1730502663713,0.5393651,69596.0,69595.0,0.002642]
[1730502663950,0.58429103,69596.0,69595.0,0.002642]
[1730502664885,0.58433495,69596.0,69595.0,0.002642]
[1730502666034,0.71365274,69596.0,69595.0,0.002642]
[1730502666630,0.5843139,69596.0,69595.0,0.002642]
[1730502666740,0.5627669,69596.0,69595.0,0.002642]
[1730502666965,0.58431389,69596.0,69595.0,0.002642]
[1730502667227,0.33406011,69596.0,69595.0,0.14633]
[1730502667457,0.22570048,69596.0,69595.0,0.14633]
[1730502667703,0.31190427,69596.0,69595.0,0.23381346]
[1730502667931,0.31190427,69596.0,69595.0,0.23881346]
[1730502668148,0.31190427,69596.0,69595.0,0.24081346]
[1730502668813,0.31190427,69596.0,69595.0,0.23581346]
[1730502669026,0.31190427,69596.0,69595.0,0.24081346]
[1730502669277,0.31190427,69596.0,69595.0,0.38426871]
[1730502669522,0.06657898,69596.0,69595.0,0.29678525]
[1730502669759,0.13123046,69596.0,69595.0,0.29678525]
[1730502671093,0.06657898,69596.0,69595.0,0.38433628]
[1730502671328,0.06657898,69596.0,69595.0,0.46818525]
[1730502674804,0.08004105,69596.0,69595.0,0.46818525]
[1730502676894,0.06656162,69596.0,69595.0,0.46818525]
[1730502677105,0.08002124,69596.0,69595.0,0.59515078]
[1730502677333,0.0800213,69596.0,69595.0,0.59515078]
[1730502678397,0.0800213,69596.0,69595.0,0.46818525]
[1730502686368,0.02427364,69596.0,69595.0,0.47318525]
[1730502687211,0.01427364,69596.0,69595.0,0.47218525]
[1730502687417,0.01727364,69596.0,69595.0,0.47218525]
[1730502687825,0.01427364,69596.0,69595.0,0.47218525]
[1730502688034,0.01927364,69596.0,69595.0,0.47218525]
[1730502688675,0.01927364,69596.0,69595.0,0.38988525]
[1730502689098,0.04179415,69596.0,69595.0,0.29578525]
[1730502689761,0.05524466,69596.0,69595.0,0.29578525]
[1730502689984,0.05523618,69596.0,69595.0,0.29578525]
[1730502693359,0.05523618,69596.0,69595.0,0.32455525]
[1730502693637,0.05523618,69596.0,69595.0,0.29578525]
[1730502694396,0.02026451,69596.0,69595.0,0.29578525]
[1730502694597,0.05524565,69596.0,69595.0,0.29578525]
[1730502695385,0.06601227,69596.0,69595.0,0.29578525]
[1730502697251,0.05256176,69596.0,69595.0,0.29578525]
[1730502698024,0.02028082,69596.0,69595.0,0.29578525]
[1730502698228,0.04183255,69596.0,69595.0,0.29578525]
[1730502698576,0.04183254,69596.0,69595.0,0.29578525]
[1730502698778,0.052606,69596.0,69595.0,0.29578525]
[1730502699188,0.05261154,69596.0,69595.0,0.29578525]
[1730502699975,0.06608233,69596.0,69595.0,0.38918525]
[1730502701150,0.05261154,69596.0,69595.0,0.38918525]
[1730502701793,0.006814,69596.0,69595.0,0.38918525]
[1730502702000,0.05261969,69596.0,69595.0,0.38918525]
[1730502704639,0.03914743,69596.0,69595.0,0.38918525]
[1730502704922,0.02836962,69596.0,69595.0,0.38918525]
[1730502705568,0.01759062,69596.0,69595.0,0.38918525]
[1730502707032,0.05261434,69596.0,69595.0,0.38918525]
[1730502707698,0.03106128,69596.0,69595.0,0.38918525]
[1730502708352,0.02028466,69596.0,69595.0,0.38918525]
[1730502709007,0.05261247,69596.0,69595.0,0.38918525]
[1730502709235,0.06608157,69596.0,69595.0,0.38918525]
[1730502709457,0.07685745,69596.0,69595.0,0.38918525]
[1730502709679,0.06608209,69596.0,69595.0,0.38918525]
[1730502709904,0.07685813,69596.0,69595.0,0.38918525]
[1730502713194,0.06338828,69596.0,69595.0,0.38918525]
[1730502713399,0.07685779,69596.0,69595.0,0.38918525]
[1730502713608,0.05261139,69596.0,69595.0,0.38918525]
[1730502713812,0.06608111,69596.0,69595.0,0.38918525]
[1730502714039,0.07685689,69596.0,69595.0,0.38918525]
[1730502718641,0.07685689,69596.0,69595.0,0.52766255]
[1730502719569,0.06608078,69596.0,69595.0,0.52766255]
[1730502719790,0.06608078,69596.0,69595.0,0.38918525]
[1730502720268,0.05261995,69596.0,69595.0,0.38918525]
[1730502720483,0.06609523,69596.0,69595.0,0.38918525]
[1730502722737,0.04184576,69596.0,69595.0,0.38918525]
[1730502722947,0.06609851,69596.0,69595.0,0.61926255]
[1730502723158,0.05531951,69596.0,69595.0,0.61926255]
[1730502724547,0.05431951,69596.0,69595.0,0.61926255]
[1730502724897,0.04931951,69596.0,69595.0,0.61926255]
[1730502725127,0.03584576,69596.0,69595.0,0.61926255]
[1730502725331,0.03984576,69596.0,69595.0,0.61926255]